[Event "Titled Tuesday Blitz May 17 Late 2022"]
[White "Martinez Alcantara, Jose Eduardo"]
[Black "Holt, Conrad"]
[WhiteFideId "3805662"]
[BlackFideId "2034387"]
[WhiteElo "2690"]
[BlackElo "2586"]
[Result "1-0"]
[Round "08"]
[TimeControl "180+1"]
[Date "2022.05.17"]
[WhiteClock "0:00:04"]
[BlackClock "0:00:01"]

1. Nf3 {[%clk 0:03:00]}  d5 {[%clk 0:02:59]} 2. c4 {[%clk 0:03:01]}  c6 {[%clk 0:02:56]} 3. g3 {[%clk 0:03:01]}  Bg4 {[%clk 0:02:56]} 4. Bg2 {[%clk 0:02:59]}  Nd7 {[%clk 0:02:56]} 5. O-O {[%clk 0:02:57]}  e6 {[%clk 0:02:56]} 6. Qc2 {[%clk 0:02:53]}  Bxf3 {[%clk 0:02:47]} 7. exf3 {[%clk 0:02:50]}  dxc4 {[%clk 0:02:44]} 8. Qxc4 {[%clk 0:02:51]}  Nb6 {[%clk 0:02:41]} 9. Qb3 {[%clk 0:02:49]}  Nf6 {[%clk 0:02:35]} 10. Nc3 {[%clk 0:02:48]}  Bc5 {[%clk 0:02:27]} 11. Qc2 {[%clk 0:02:44]}  O-O {[%clk 0:02:24]} 12. b3 {[%clk 0:02:45]}  e5 {[%clk 0:02:18]} 13. Ne2 {[%clk 0:02:41]}  Qd6 {[%clk 0:02:14]} 14. Bb2 {[%clk 0:02:41]}  Rad8 {[%clk 0:02:13]} 15. Rad1 {[%clk 0:02:37]}  Ba3 {[%clk 0:02:09]} 16. Ba1 {[%clk 0:02:37]}  Rfe8 {[%clk 0:01:41]} 17. d4 {[%clk 0:02:35]}  exd4 {[%clk 0:01:40]} 18. Nxd4 {[%clk 0:02:36]}  Qc5 {[%clk 0:01:37]} 19. f4 {[%clk 0:02:13]}  Nbd5 {[%clk 0:01:29]} 20. Qd3 {[%clk 0:02:03]}  Nb4 {[%clk 0:01:21]} 21. Qb1 {[%clk 0:02:03]}  Nfd5 {[%clk 0:01:02]} 22. Nf5 {[%clk 0:01:37]}  g6 {[%clk 0:00:41]} 23. Nh6+ {[%clk 0:01:18]}  Kf8 {[%clk 0:00:41]} 24. Bd4 {[%clk 0:00:45]}  Qc2 {[%clk 0:00:40]} 25. Qa1 {[%clk 0:00:46]}  Re2 {[%clk 0:00:26]} 26. Bf3 {[%clk 0:00:35]}  Re6 {[%clk 0:00:06]} 27. Bh8 {[%clk 0:00:18]}  f6 {[%clk 0:00:04]} 28. Rde1 {[%clk 0:00:15]}  Bb2 {[%clk 0:00:03]} 29. Qd1 {[%clk 0:00:09]}  Qxd1 {[%clk 0:00:03]} 30. Rxd1 {[%clk 0:00:10]}  Ke7 {[%clk 0:00:03]} 31. f5 {[%clk 0:00:10]}  Re5 {[%clk 0:00:03]} 32. fxg6 {[%clk 0:00:11]}  hxg6 {[%clk 0:00:03]} 33. Ng4 {[%clk 0:00:11]}  Rxh8 {[%clk 0:00:03]} 34. Nxe5 {[%clk 0:00:12]}  fxe5 {[%clk 0:00:04]} 35. Rd2 {[%clk 0:00:09]}  Bc3 {[%clk 0:00:04]} 36. Re2 {[%clk 0:00:09]}  Kf6 {[%clk 0:00:04]} 37. Rd1 {[%clk 0:00:10]}  Bd4 {[%clk 0:00:04]} 38. Rf1 {[%clk 0:00:02]}  Nc3 {[%clk 0:00:04]} 39. Rd2 {[%clk 0:00:03]}  Ncxa2 {[%clk 0:00:04]} 40. Kg2 {[%clk 0:00:04]}  Nc3 {[%clk 0:00:05]} 41. Ra1 {[%clk 0:00:04]}  a6 {[%clk 0:00:05]} 42. Re1 {[%clk 0:00:04]}  c5 {[%clk 0:00:05]} 43. Bxb7 {[%clk 0:00:04]}  Rb8 {[%clk 0:00:05]} 44. Bf3 {[%clk 0:00:03]}  Nbd5 {[%clk 0:00:06]} 45. Ra1 {[%clk 0:00:02]}  Rb6 {[%clk 0:00:06]} 46. Ra5 {[%clk 0:00:02]}  e4 {[%clk 0:00:07]} 47. Be2 {[%clk 0:00:02]}  e3 {[%clk 0:00:07]} 48. fxe3 {[%clk 0:00:02]}  Nxe3+ {[%clk 0:00:07]} 49. Kh3 {[%clk 0:00:03]}  Nxe2 {[%clk 0:00:08]} 50. Rxe2 {[%clk 0:00:03]}  Rxb3 {[%clk 0:00:08]} 51. Rxa6+ {[%clk 0:00:04]}  Kg7 {[%clk 0:00:08]} 52. Rf2 {[%clk 0:00:03]}  Nf5 {[%clk 0:00:09]} 53. Rf4 {[%clk 0:00:04]}  Rc3 {[%clk 0:00:09]} 54. Rg4 {[%clk 0:00:04]}  Ne7 {[%clk 0:00:09]} 55. Ra7 {[%clk 0:00:04]}  Bf6 {[%clk 0:00:09]} 56. Re4 {[%clk 0:00:04]}  Kf7 {[%clk 0:00:08]} 57. Rc7 {[%clk 0:00:05]}  Rc1 {[%clk 0:00:08]} 58. Kg2 {[%clk 0:00:05]}  c4 {[%clk 0:00:08]} 59. Rcxc4 {[%clk 0:00:05]}  Rd1 {[%clk 0:00:08]} 60. Rf4 {[%clk 0:00:04]}  Rd2+ {[%clk 0:00:08]} 61. Rf2 {[%clk 0:00:05]}  Rd6 {[%clk 0:00:08]} 62. Re4 {[%clk 0:00:04]}  Nd5 {[%clk 0:00:08]} 63. Ra4 {[%clk 0:00:05]}  Ne3+ {[%clk 0:00:07]} 64. Kf3 {[%clk 0:00:05]}  Nf5 {[%clk 0:00:08]} 65. Kg2 {[%clk 0:00:05]}  Bd4 {[%clk 0:00:07]} 66. Rf3 {[%clk 0:00:04]}  Kg7 {[%clk 0:00:06]} 67. Raa3 {[%clk 0:00:04]}  Bf6 {[%clk 0:00:06]} 68. Kh3 {[%clk 0:00:04]}  Rd7 {[%clk 0:00:06]} 69. Ra6 {[%clk 0:00:04]}  Rd8 {[%clk 0:00:06]} 70. Kg2 {[%clk 0:00:03]}  Rd2+ {[%clk 0:00:06]} 71. Kh3 {[%clk 0:00:04]}  Bg5 {[%clk 0:00:06]} 72. Ra5 {[%clk 0:00:03]}  Kh6 {[%clk 0:00:05]} 73. Ra8 {[%clk 0:00:03]}  Rd7 {[%clk 0:00:05]} 74. Rb3 {[%clk 0:00:03]}  Nd4 {[%clk 0:00:06]} 75. Rbb8 {[%clk 0:00:03]}  Bf6 {[%clk 0:00:06]} 76. Rf8 {[%clk 0:00:03]}  Bg7 {[%clk 0:00:05]} 77. Rf4 {[%clk 0:00:04]}  Ne6 {[%clk 0:00:05]} 78. Rh4+ {[%clk 0:00:02]}  Kg5 {[%clk 0:00:05]} 79. Ra6 {[%clk 0:00:03]}  Kf5 {[%clk 0:00:05]} 80. Kg2 {[%clk 0:00:02]}  Rd2+ {[%clk 0:00:04]} 81. Kf1 {[%clk 0:00:03]}  Rb2 {[%clk 0:00:04]} 82. Ra5+ {[%clk 0:00:03]}  Kf6 {[%clk 0:00:04]} 83. Re4 {[%clk 0:00:03]}  Rb1+ {[%clk 0:00:04]} 84. Kg2 {[%clk 0:00:04]}  Rb6 {[%clk 0:00:04]} 85. Re2 {[%clk 0:00:04]}  Kf7 {[%clk 0:00:05]} 86. Ra7+ {[%clk 0:00:03]}  Kg8 {[%clk 0:00:04]} 87. h4 {[%clk 0:00:03]}  Nf8 {[%clk 0:00:05]} 88. Ree7 {[%clk 0:00:03]}  Bf6 {[%clk 0:00:05]} 89. Reb7 {[%clk 0:00:04]}  Rc6 {[%clk 0:00:05]} 90. Ra8 {[%clk 0:00:04]}  Rd6 {[%clk 0:00:04]} 91. Kh3 {[%clk 0:00:05]}  Rd3 {[%clk 0:00:04]} 92. Rb6 {[%clk 0:00:04]}  Bg7 {[%clk 0:00:02]} 93. Rxg6 {[%clk 0:00:03]}  Kh7 {[%clk 0:00:03]} 94. Rg4 {[%clk 0:00:03]}  Rd7 {[%clk 0:00:03]} 95. Ra6 {[%clk 0:00:03]}  Re7 {[%clk 0:00:03]} 96. Rf4 {[%clk 0:00:03]}  Ng6 {[%clk 0:00:02]} 97. Rf5 {[%clk 0:00:04]}  Ne5 {[%clk 0:00:02]} 98. Rh5+ {[%clk 0:00:04]}  Kg8 {[%clk 0:00:03]} 99. Rg5 {[%clk 0:00:04]}  Nf7 {[%clk 0:00:03]} 100. Ra8+ {[%clk 0:00:03]}  Kh7 {[%clk 0:00:03]} 101. Rf5 {[%clk 0:00:04]}  Kg6 {[%clk 0:00:03]} 102. Rf4 {[%clk 0:00:04]}  Nh6 {[%clk 0:00:03]} 103. Ra6+ {[%clk 0:00:04]}  Kh7 {[%clk 0:00:03]} 104. Rf3 {[%clk 0:00:05]}  Rd7 {[%clk 0:00:03]} 105. g4 {[%clk 0:00:05]}  Ng8 {[%clk 0:00:02]} 106. g5 {[%clk 0:00:05]}  Rd5 {[%clk 0:00:01]} 107. Ra7 {[%clk 0:00:04]} 1-0


[Site "https://www.chess.com"]

[Event "Titled Tuesday Blitz May 17 Late 2022"]
[White "Moroni, Luca Jr"]
[Black "Martinez Reyes, Pedro Ramon"]
[WhiteFideId "865834"]
[BlackFideId "3901807"]
[WhiteElo "2573"]
[BlackElo "2410"]
[Result "1-0"]
[Round "08"]
[TimeControl "180+1"]
[Date "2022.05.17"]
[WhiteClock "0:00:19"]
[BlackClock "0:00:01"]

1. b3 {[%clk 0:03:00]}  d5 {[%clk 0:02:59]} 2. Bb2 {[%clk 0:03:00]}  c6 {[%clk 0:02:58]} 3. e3 {[%clk 0:03:00]}  Bf5 {[%clk 0:02:58]} 4. f4 {[%clk 0:03:01]}  Nf6 {[%clk 0:02:57]} 5. h3 {[%clk 0:03:01]}  h6 {[%clk 0:02:58]} 6. g4 {[%clk 0:03:01]}  Be4 {[%clk 0:02:58]} 7. Nf3 {[%clk 0:03:01]}  e6 {[%clk 0:02:56]} 8. d3 {[%clk 0:03:01]}  Bh7 {[%clk 0:02:55]} 9. Nbd2 {[%clk 0:03:00]}  a5 {[%clk 0:02:55]} 10. a4 {[%clk 0:02:58]}  Nbd7 {[%clk 0:02:53]} 11. Rg1 {[%clk 0:02:57]}  Qb6 {[%clk 0:02:53]} 12. Qe2 {[%clk 0:02:43]}  Bc5 {[%clk 0:02:53]} 13. Bd4 {[%clk 0:02:38]}  O-O-O {[%clk 0:02:46]} 14. O-O-O {[%clk 0:02:29]}  Rhe8 {[%clk 0:02:36]} 15. Kb2 {[%clk 0:02:29]}  Qb4 {[%clk 0:02:19]} 16. Nb1 {[%clk 0:02:19]}  Bxd4+ {[%clk 0:02:05]} 17. exd4 {[%clk 0:02:17]}  c5 {[%clk 0:02:02]} 18. Qd2 {[%clk 0:02:09]}  Qb6 {[%clk 0:01:58]} 19. Nc3 {[%clk 0:01:52]}  Kb8 {[%clk 0:01:34]} 20. Nb5 {[%clk 0:01:46]}  Rc8 {[%clk 0:01:34]} 21. g5 {[%clk 0:01:22]}  hxg5 {[%clk 0:01:27]} 22. fxg5 {[%clk 0:01:23]}  Ng8 {[%clk 0:01:21]} 23. Qf4+ {[%clk 0:01:22]}  Ka8 {[%clk 0:01:11]} 24. Nd6 {[%clk 0:01:22]}  Qc7 {[%clk 0:00:55]} 25. Qh2 {[%clk 0:01:11]}  cxd4 {[%clk 0:00:36]} 26. Nxc8 {[%clk 0:01:11]}  Qc3+ {[%clk 0:00:32]} 27. Kb1 {[%clk 0:01:07]}  Rxc8 {[%clk 0:00:32]} 28. Qd2 {[%clk 0:01:03]}  Qc5 {[%clk 0:00:32]} 29. h4 {[%clk 0:00:55]}  Ne7 {[%clk 0:00:30]} 30. h5 {[%clk 0:00:54]}  Bf5 {[%clk 0:00:30]} 31. h6 {[%clk 0:00:52]}  Nc6 {[%clk 0:00:13]} 32. hxg7 {[%clk 0:00:45]}  Rg8 {[%clk 0:00:12]} 33. Nh4 {[%clk 0:00:39]}  Qa3 {[%clk 0:00:04]} 34. Qc1 {[%clk 0:00:37]}  Qc5 {[%clk 0:00:03]} 35. Nxf5 {[%clk 0:00:36]}  exf5 {[%clk 0:00:04]} 36. Bh3 {[%clk 0:00:25]}  Rxg7 {[%clk 0:00:04]} 37. Bxf5 {[%clk 0:00:25]}  Nde5 {[%clk 0:00:04]} 38. Rde1 {[%clk 0:00:24]}  Rg8 {[%clk 0:00:04]} 39. Rgf1 {[%clk 0:00:22]}  Ka7 {[%clk 0:00:02]} 40. Re2 {[%clk 0:00:21]}  Re8 {[%clk 0:00:01]} 41. Rfe1 {[%clk 0:00:20]}  Re7 {[%clk 0:00:01]} 42. Qd2 {[%clk 0:00:19]} 1-0


[Site "https://www.chess.com"]

[Event "Titled Tuesday Blitz May 17 Late 2022"]
[White "Norowitz, Yaacov"]
[Black "Xiong, Jeffery"]
[WhiteFideId "2024799"]
[BlackFideId "2047640"]
[WhiteElo "2412"]
[BlackElo "2727"]
[Result "0-1"]
[Round "08"]
[TimeControl "180+1"]
[Date "2022.05.17"]
[WhiteClock "0:01:07"]
[BlackClock "0:01:11"]

1. d4 {[%clk 0:02:59]}  c5 {[%clk 0:03:00]} 2. c3 {[%clk 0:02:58]}  Nf6 {[%clk 0:02:59]} 3. Nf3 {[%clk 0:02:58]}  d5 {[%clk 0:02:56]} 4. Bg5 {[%clk 0:02:56]}  Ne4 {[%clk 0:02:55]} 5. Bh4 {[%clk 0:02:57]}  Qb6 {[%clk 0:02:53]} 6. Qb3 {[%clk 0:02:54]}  Nc6 {[%clk 0:02:52]} 7. e3 {[%clk 0:02:54]}  c4 {[%clk 0:02:52]} 8. Qc2 {[%clk 0:02:54]}  Bf5 {[%clk 0:02:51]} 9. Qc1 {[%clk 0:02:54]}  e6 {[%clk 0:02:52]} 10. Nbd2 {[%clk 0:02:54]}  h6 {[%clk 0:02:44]} 11. Nxe4 {[%clk 0:02:53]}  Bxe4 {[%clk 0:02:40]} 12. Nd2 {[%clk 0:02:54]}  Bh7 {[%clk 0:02:41]} 13. Be2 {[%clk 0:02:54]}  g5 {[%clk 0:02:32]} 14. Bg3 {[%clk 0:02:53]}  h5 {[%clk 0:02:32]} 15. Bxh5 {[%clk 0:02:48]}  Bd3 {[%clk 0:02:32]} 16. Be2 {[%clk 0:02:46]}  Bxe2 {[%clk 0:02:32]} 17. Kxe2 {[%clk 0:02:47]}  Be7 {[%clk 0:02:32]} 18. Qc2 {[%clk 0:02:47]}  f5 {[%clk 0:02:29]} 19. h4 {[%clk 0:02:36]}  gxh4 {[%clk 0:02:27]} 20. Nf3 {[%clk 0:02:35]}  Qd8 {[%clk 0:02:25]} 21. Rh3 {[%clk 0:02:27]}  Qd7 {[%clk 0:02:18]} 22. Rah1 {[%clk 0:02:25]}  O-O-O {[%clk 0:02:18]} 23. Bxh4 {[%clk 0:02:25]}  Bxh4 {[%clk 0:02:10]} 24. Rxh4 {[%clk 0:02:25]}  Rxh4 {[%clk 0:02:11]} 25. Rxh4 {[%clk 0:02:25]}  b5 {[%clk 0:02:03]} 26. g3 {[%clk 0:02:13]}  a5 {[%clk 0:02:02]} 27. Kf1 {[%clk 0:01:59]}  Kb7 {[%clk 0:01:58]} 28. Kg2 {[%clk 0:01:58]}  Qg7 {[%clk 0:01:55]} 29. Qc1 {[%clk 0:01:54]}  Rh8 {[%clk 0:01:55]} 30. Qh1 {[%clk 0:01:54]}  Rxh4 {[%clk 0:01:55]} 31. Qxh4 {[%clk 0:01:54]}  b4 {[%clk 0:01:51]} 32. Qh5 {[%clk 0:01:51]}  Qe7 {[%clk 0:01:46]} 33. Qg6 {[%clk 0:01:49]}  Kc7 {[%clk 0:01:41]} 34. Ng5 {[%clk 0:01:47]}  Kd7 {[%clk 0:01:41]} 35. a4 {[%clk 0:01:34]}  bxa3 {[%clk 0:01:30]} 36. bxa3 {[%clk 0:01:34]}  Nd8 {[%clk 0:01:31]} 37. a4 {[%clk 0:01:33]}  Kc7 {[%clk 0:01:25]} 38. Qg8 {[%clk 0:01:29]}  Qd7 {[%clk 0:01:25]} 39. Qf8 {[%clk 0:01:17]}  Qxa4 {[%clk 0:01:24]} 40. Qc5+ {[%clk 0:01:16]}  Kb7 {[%clk 0:01:24]} 41. Qd6 {[%clk 0:01:14]}  Qe8 {[%clk 0:01:20]} 42. Nh7 {[%clk 0:01:13]}  Nc6 {[%clk 0:01:16]} 43. Qc5 {[%clk 0:01:07]}  Qe7 {[%clk 0:01:11]} 0-1


[Site "https://www.chess.com"]

[Event "Titled Tuesday Blitz May 17 Late 2022"]
[White "Oparin, Grigoriy"]
[Black "Sismeiro, Miguel"]
[WhiteFideId "24125890"]
[BlackFideId "1950975"]
[WhiteElo "2665"]
[BlackElo "2031"]
[Result "1-0"]
[Round "08"]
[TimeControl "180+1"]
[Date "2022.05.17"]
[WhiteClock "0:02:56"]
[BlackClock "0:00:24"]

1. e4 {[%clk 0:03:00]}  c6 {[%clk 0:02:58]} 2. d4 {[%clk 0:03:00]}  g6 {[%clk 0:02:58]} 3. e5 {[%clk 0:03:01]}  Bg7 {[%clk 0:02:57]} 4. f4 {[%clk 0:03:02]}  d6 {[%clk 0:02:39]} 5. Nf3 {[%clk 0:03:02]}  Nh6 {[%clk 0:02:37]} 6. Bc4 {[%clk 0:03:02]}  O-O {[%clk 0:02:37]} 7. O-O {[%clk 0:03:02]}  Bg4 {[%clk 0:02:35]} 8. c3 {[%clk 0:03:02]}  Qb6 {[%clk 0:01:51]} 9. h3 {[%clk 0:02:59]}  Bxf3 {[%clk 0:01:49]} 10. Qxf3 {[%clk 0:03:00]}  d5 {[%clk 0:01:46]} 11. Bd3 {[%clk 0:03:00]}  e6 {[%clk 0:01:46]} 12. g4 {[%clk 0:03:00]}  c5 {[%clk 0:01:36]} 13. dxc5 {[%clk 0:03:01]}  Qxc5+ {[%clk 0:01:32]} 14. Be3 {[%clk 0:03:01]}  Qc7 {[%clk 0:01:32]} 15. f5 {[%clk 0:03:02]}  g5 {[%clk 0:00:58]} 16. f6 {[%clk 0:03:01]}  Bh8 {[%clk 0:00:51]} 17. Bxg5 {[%clk 0:03:00]}  Qb6+ {[%clk 0:00:51]} 18. Rf2 {[%clk 0:03:00]}  Nc6 {[%clk 0:00:48]} 19. Qf4 {[%clk 0:02:58]}  Qc7 {[%clk 0:00:35]} 20. Re2 {[%clk 0:02:57]}  Nxg4 {[%clk 0:00:24]} 21. Qxg4 {[%clk 0:02:55]}  Nxe5 {[%clk 0:00:24]} 22. Rxe5 {[%clk 0:02:56]}  Qxe5 {[%clk 0:00:24]} 23. Bf4+ {[%clk 0:02:56]} 1-0


[Site "https://www.chess.com"]

[Event "Titled Tuesday Blitz May 17 Late 2022"]
[White "Ostrovskiy, Aleksandr"]
[Black "Bettalli, Francesco"]
[WhiteFideId "2034239"]
[BlackFideId "2816453"]
[WhiteElo "2340"]
[BlackElo "2216"]
[Result "1-0"]
[Round "08"]
[TimeControl "180+1"]
[Date "2022.05.17"]
[WhiteClock "0:01:26"]
[BlackClock "0:02:17"]

1. d4 {[%clk 0:03:00]}  e5 {[%clk 0:02:58]} 2. dxe5 {[%clk 0:03:00]}  Nc6 {[%clk 0:02:58]} 3. Nf3 {[%clk 0:03:01]}  Qe7 {[%clk 0:02:59]} 4. Bf4 {[%clk 0:03:01]}  Qb4+ {[%clk 0:02:59]} 5. Bd2 {[%clk 0:03:00]}  Qxb2 {[%clk 0:03:00]} 6. Nc3 {[%clk 0:03:01]}  Bb4 {[%clk 0:03:01]} 7. Rb1 {[%clk 0:03:01]}  Qa3 {[%clk 0:03:01]} 8. Nd5 {[%clk 0:03:00]}  Bxd2+ {[%clk 0:02:58]} 9. Qxd2 {[%clk 0:03:01]}  Kd8 {[%clk 0:02:57]} 10. e4 {[%clk 0:02:57]}  Nge7 {[%clk 0:02:56]} 11. Be2 {[%clk 0:02:36]}  Ng6 {[%clk 0:02:42]} 12. O-O {[%clk 0:02:31]}  Qf8 {[%clk 0:02:30]} 13. Qc3 {[%clk 0:01:58]}  Qe8 {[%clk 0:02:21]} 14. Rfd1 {[%clk 0:01:31]}  Ngxe5 {[%clk 0:02:19]} 15. Nd4 {[%clk 0:01:26]}  Nxd4 {[%clk 0:02:17]} 16. Qxc7# {[%clk 0:01:26]} 1-0


[Site "https://www.chess.com"]

[Event "Titled Tuesday Blitz May 17 Late 2022"]
[White "Pap, Gyula"]
[Black "Matinian, Nikita"]
[WhiteFideId "725323"]
[BlackFideId "24129100"]
[WhiteElo "2553"]
[BlackElo "2422"]
[Result "1-0"]
[Round "08"]
[TimeControl "180+1"]
[Date "2022.05.17"]
[WhiteClock "0:00:08"]
[BlackClock "0:00:08"]

1. d4 {[%clk 0:03:00]}  Nf6 {[%clk 0:02:59]} 2. c4 {[%clk 0:03:01]}  g6 {[%clk 0:02:59]} 3. Nc3 {[%clk 0:03:01]}  Bg7 {[%clk 0:03:00]} 4. e4 {[%clk 0:03:01]}  O-O {[%clk 0:03:00]} 5. Be2 {[%clk 0:03:02]}  d6 {[%clk 0:03:01]} 6. Bg5 {[%clk 0:03:02]}  Na6 {[%clk 0:03:00]} 7. Qd2 {[%clk 0:03:01]}  c6 {[%clk 0:02:58]} 8. h4 {[%clk 0:02:54]}  h5 {[%clk 0:02:58]} 9. f3 {[%clk 0:02:45]}  Nc7 {[%clk 0:02:58]} 10. Nh3 {[%clk 0:02:42]}  Bxh3 {[%clk 0:02:57]} 11. Rxh3 {[%clk 0:02:43]}  Ne6 {[%clk 0:02:50]} 12. Be3 {[%clk 0:02:42]}  c5 {[%clk 0:02:51]} 13. dxc5 {[%clk 0:02:14]}  Nxc5 {[%clk 0:02:51]} 14. O-O-O {[%clk 0:01:41]}  Rc8 {[%clk 0:02:46]} 15. Kb1 {[%clk 0:01:41]}  a6 {[%clk 0:02:45]} 16. e5 {[%clk 0:01:32]}  Nfd7 {[%clk 0:02:38]} 17. exd6 {[%clk 0:01:31]}  exd6 {[%clk 0:02:38]} 18. Nd5 {[%clk 0:01:27]}  Re8 {[%clk 0:02:32]} 19. Bg5 {[%clk 0:01:24]}  f6 {[%clk 0:02:32]} 20. Bf4 {[%clk 0:01:20]}  Ne5 {[%clk 0:02:32]} 21. Rg3 {[%clk 0:01:17]}  Ncd7 {[%clk 0:02:09]} 22. Be3 {[%clk 0:01:01]}  Nf8 {[%clk 0:02:05]} 23. Rc1 {[%clk 0:00:54]}  Qd7 {[%clk 0:01:56]} 24. Bd3 {[%clk 0:00:51]}  Qf7 {[%clk 0:01:52]} 25. Nb6 {[%clk 0:00:24]}  Rcd8 {[%clk 0:01:34]} 26. Be4 {[%clk 0:00:24]}  Kh7 {[%clk 0:01:28]} 27. Bd5 {[%clk 0:00:21]}  Qc7 {[%clk 0:01:24]} 28. Bd4 {[%clk 0:00:15]}  Ne6 {[%clk 0:01:18]} 29. Bxe6 {[%clk 0:00:13]}  Rxe6 {[%clk 0:01:17]} 30. Nd5 {[%clk 0:00:13]}  Qf7 {[%clk 0:01:15]} 31. Nf4 {[%clk 0:00:13]}  Ree8 {[%clk 0:01:13]} 32. Nd5 {[%clk 0:00:02]}  Bh6 {[%clk 0:01:09]} 33. f4 {[%clk 0:00:01]}  Re6 {[%clk 0:00:57]} 34. Qc2 {[%clk 0:00:01]}  f5 {[%clk 0:00:46]} 35. fxe5 {[%clk 0:00:01]}  dxe5 {[%clk 0:00:47]} 36. Be3 {[%clk 0:00:01]}  f4 {[%clk 0:00:47]} 37. Rf3 {[%clk 0:00:02]}  Qf5 {[%clk 0:00:44]} 38. Bg1 {[%clk 0:00:02]}  e4 {[%clk 0:00:41]} 39. Rff1 {[%clk 0:00:02]}  Rd7 {[%clk 0:00:30]} 40. Rce1 {[%clk 0:00:02]}  b5 {[%clk 0:00:27]} 41. Nc3 {[%clk 0:00:03]}  Rde7 {[%clk 0:00:20]} 42. Nd5 {[%clk 0:00:02]}  Rb7 {[%clk 0:00:14]} 43. Rxe4 {[%clk 0:00:02]}  bxc4 {[%clk 0:00:07]} 44. Rxe6 {[%clk 0:00:02]}  Qxe6 {[%clk 0:00:07]} 45. Nc3 {[%clk 0:00:01]}  Bg7 {[%clk 0:00:07]} 46. Rc1 {[%clk 0:00:02]}  Qc6 {[%clk 0:00:05]} 47. Ka1 {[%clk 0:00:02]}  f3 {[%clk 0:00:05]} 48. gxf3 {[%clk 0:00:02]}  Qxf3 {[%clk 0:00:06]} 49. Bc5 {[%clk 0:00:03]}  Qg4 {[%clk 0:00:06]} 50. Ba3 {[%clk 0:00:03]}  Qxh4 {[%clk 0:00:06]} 51. Qe4 {[%clk 0:00:03]}  Qxe4 {[%clk 0:00:05]} 52. Nxe4 {[%clk 0:00:04]}  Bh6 {[%clk 0:00:03]} 53. Rxc4 {[%clk 0:00:03]}  g5 {[%clk 0:00:03]} 54. Rc6 {[%clk 0:00:03]}  Rf7 {[%clk 0:00:03]} 55. b3 {[%clk 0:00:01]}  g4 {[%clk 0:00:02]} 56. Nf6+ {[%clk 0:00:01]}  Kg6 {[%clk 0:00:02]} 57. Nxg4+ {[%clk 0:00:02]}  Kg5 {[%clk 0:00:01]} 58. Nxh6 {[%clk 0:00:02]}  Rf1+ {[%clk 0:00:01]} 59. Bc1+ {[%clk 0:00:03]}  Kh4 {[%clk 0:00:01]} 60. Rc4+ {[%clk 0:00:03]}  Kh3 {[%clk 0:00:01]} 61. Kb2 {[%clk 0:00:03]}  h4 {[%clk 0:00:01]} 62. Bd2 {[%clk 0:00:03]}  Rf2 {[%clk 0:00:01]} 63. Kc3 {[%clk 0:00:04]}  Kg3 {[%clk 0:00:02]} 64. Rc5 {[%clk 0:00:03]}  h3 {[%clk 0:00:02]} 65. Nf5+ {[%clk 0:00:03]}  Kg4 {[%clk 0:00:01]} 66. Ne3+ {[%clk 0:00:03]}  Kf3 {[%clk 0:00:02]} 67. Rf5+ {[%clk 0:00:03]}  Ke2 {[%clk 0:00:02]} 68. Rxf2+ {[%clk 0:00:04]}  Kxf2 {[%clk 0:00:03]} 69. Ng4+ {[%clk 0:00:04]}  Kg3 {[%clk 0:00:03]} 70. Nh2 {[%clk 0:00:05]}  Kxh2 {[%clk 0:00:03]} 71. Bf4+ {[%clk 0:00:05]}  Kg2 {[%clk 0:00:04]} 72. Bb8 {[%clk 0:00:06]}  Kf3 {[%clk 0:00:05]} 73. Kb4 {[%clk 0:00:06]}  Ke4 {[%clk 0:00:06]} 74. Ka5 {[%clk 0:00:07]}  Kd5 {[%clk 0:00:06]} 75. Kxa6 {[%clk 0:00:07]}  Kc6 {[%clk 0:00:07]} 76. Bh2 {[%clk 0:00:07]}  Kd7 {[%clk 0:00:07]} 77. b4 {[%clk 0:00:07]}  Kc8 {[%clk 0:00:08]} 78. b5 {[%clk 0:00:08]} 1-0


[Site "https://www.chess.com"]

[Event "Titled Tuesday Blitz May 17 Late 2022"]
[White "Pichot, Alan"]
[Black "Sadhwani, Raunak"]
[WhiteFideId "110973"]
[BlackFideId "35093487"]
[WhiteElo "2579"]
[BlackElo "2616"]
[Result "1/2-1/2"]
[Round "08"]
[TimeControl "180+1"]
[Date "2022.05.17"]
[WhiteClock "0:01:05"]
[BlackClock "0:01:24"]

1. e4 {[%clk 0:03:00]}  e5 {[%clk 0:03:00]} 2. Nf3 {[%clk 0:03:01]}  Nc6 {[%clk 0:03:01]} 3. Bb5 {[%clk 0:03:01]}  Nge7 {[%clk 0:03:00]} 4. Nc3 {[%clk 0:02:59]}  Ng6 {[%clk 0:02:59]} 5. h4 {[%clk 0:02:59]}  Be7 {[%clk 0:02:57]} 6. h5 {[%clk 0:02:31]}  Nh4 {[%clk 0:02:56]} 7. Nxh4 {[%clk 0:02:26]}  Bxh4 {[%clk 0:02:57]} 8. Qg4 {[%clk 0:02:25]}  Bf6 {[%clk 0:02:51]} 9. Nd5 {[%clk 0:02:22]}  a6 {[%clk 0:02:42]} 10. Bxc6 {[%clk 0:02:17]}  bxc6 {[%clk 0:02:31]} 11. Nxf6+ {[%clk 0:02:18]}  Qxf6 {[%clk 0:02:32]} 12. d3 {[%clk 0:02:13]}  d6 {[%clk 0:02:31]} 13. Qg3 {[%clk 0:02:07]}  O-O {[%clk 0:02:08]} 14. O-O {[%clk 0:01:52]}  Qe6 {[%clk 0:02:02]} 15. f4 {[%clk 0:01:51]}  f5 {[%clk 0:01:33]} 16. fxe5 {[%clk 0:01:46]}  Qxe5 {[%clk 0:01:34]} 17. Qxe5 {[%clk 0:01:08]}  dxe5 {[%clk 0:01:35]} 18. exf5 {[%clk 0:01:08]}  Bxf5 {[%clk 0:01:36]} 19. Be3 {[%clk 0:01:08]}  h6 {[%clk 0:01:24]} 20. Rf3 {[%clk 0:01:05]} 1/2-1/2


[Site "https://www.chess.com"]